bitfinex-derivatives/quotes_BNBF0:USTF0_20251027
["timestamp","ask_amount","ask_price","bid_price","bid_amount"]
[1761557145022,2.13925744,1157.7,1155.0,0.63827201]
[1761557145622,2.13925744,1157.7,1155.0,1.20035128]
[1761557145821,2.13925744,1157.7,1155.1,0.56207927]
[1761557146022,2.13925744,1157.7,1155.2,0.56207927]
[1761557146223,2.13925744,1157.7,1155.3,0.56207927]
[1761557146521,2.13925744,1157.7,1155.0,0.63827201]
[1761557147024,2.13925744,1157.7,1155.0,1.20038408]
[1761557147323,2.13925744,1157.7,1155.1,0.56211207]
[1761557147525,2.13925744,1157.7,1155.2,0.56211207]
[1761557147823,2.13925744,1157.7,1155.3,0.56211207]
[1761557148023,2.13925744,1157.7,1155.0,0.63827201]
[1761557148522,2.13925744,1157.7,1155.0,1.20039922]
[1761557148723,2.13925744,1157.7,1155.1,0.56212721]
[1761557149024,2.13925744,1157.7,1155.2,0.56212721]
[1761557149223,0.15041786,1158.5,1155.3,0.56212721]
[1761557149424,0.15041786,1158.5,1155.4,0.56212721]
[1761557149624,0.15041786,1158.5,1154.7,0.63827201]
[1761557149821,0.15041786,1158.5,1154.8,0.56220415]
[1761557150025,0.15041786,1158.5,1154.9,0.56220415]
[1761557150324,2.13925744,1157.6,1155.0,0.56220415]
[1761557150526,2.13925744,1157.6,1155.1,0.56220415]
[1761557150725,2.13925744,1157.6,1155.2,0.56220415]
[1761557150925,2.13925744,1157.6,1154.8,0.63827201]
[1761557151126,2.13925744,1157.6,1154.9,0.56232197]
[1761557151327,2.13925744,1157.5,1155.0,0.56232197]
[1761557151526,2.13925744,1157.5,1155.1,0.56232197]
[1761557151823,2.13925744,1157.5,1155.2,0.56232197]
[1761557152022,2.13925744,1157.5,1154.8,0.63827201]
[1761557152324,2.13925744,1157.5,1154.9,0.56241142]
[1761557152523,2.13925744,1157.5,1155.0,0.56241142]
[1761557152727,2.13925744,1157.5,1155.1,0.56241142]
[1761557152925,5.13416334,1157.9,1154.6,0.63827201]
[1761557153123,2.13925744,1157.9,1154.7,0.56261579]
[1761557153326,2.13925744,1157.9,1154.8,0.56261579]
[1761557153526,2.13925744,1157.9,1154.9,0.56261579]
[1761557153725,2.13925744,1157.9,1155.0,0.56261579]
[1761557154026,2.13925744,1157.9,1155.1,0.56261579]
[1761557154231,2.13925744,1157.9,1154.6,0.63827201]
[1761557154428,0.15041786,1158.5,1154.7,0.56269689]
[1761557154623,0.15041786,1158.5,1154.5,0.63827201]
[1761557154624,0.15041786,1158.5,1154.8,0.56269689]
[1761557154829,0.15041786,1158.5,1154.9,0.56269689]
[1761557155130,0.15041786,1158.5,1155.0,0.56269689]
[1761557155428,0.15041786,1158.5,1155.1,0.56269689]
[1761557155628,0.15041786,1158.5,1154.5,0.63827201]
[1761557155825,0.15041786,1158.5,1154.6,0.56274615]
[1761557156029,0.15041786,1158.5,1154.7,0.56274615]
[1761557156229,0.15041786,1158.5,1154.8,0.56274615]
[1761557156529,0.15041786,1158.5,1154.9,0.56274615]
[1761557156724,0.15041786,1158.5,1155.0,0.56274615]
[1761557156929,0.15041786,1158.5,1155.1,0.56274615]
[1761557157126,0.15041786,1158.5,1154.5,0.63827201]
[1761557157346,0.15041786,1158.5,1154.6,0.56275416]
[1761557157632,0.15041786,1158.5,1154.7,0.56275416]
[1761557157830,0.15041786,1158.5,1154.8,0.56275416]
[1761557158027,0.15041786,1158.5,1154.9,0.56275416]
[1761557158227,0.15041786,1158.5,1155.0,0.56275416]
[1761557158431,0.15041786,1158.5,1155.1,0.56275416]
[1761557158725,0.15041786,1158.5,1155.2,0.56275416]
[1761557158927,0.15041786,1158.5,1154.6,0.63827201]
[1761557159132,2.2896753,1158.5,1154.7,0.5627436]
[1761557159332,2.2896753,1158.5,1154.8,0.5627436]
[1761557159529,2.2896753,1158.5,1154.9,0.5627436]
[1761557159832,2.2896753,1158.5,1155.0,0.5627436]
[1761557160033,2.2896753,1158.5,1155.1,0.5627436]
[1761557160234,2.2896753,1158.5,1154.5,0.63827201]
[1761557160434,2.2896753,1158.5,1154.6,1.20102495]
[1761557160729,2.13925744,1157.6,1154.7,0.56275294]
[1761557160933,2.13925744,1157.6,1154.8,0.56275294]
[1761557161228,2.13925744,1157.6,1154.9,0.56275294]
[1761557161431,2.13925744,1157.6,1155.0,0.56275294]
[1761557161634,5.13416334,1157.8,1155.1,0.56275294]
[1761557161931,5.13416334,1157.8,1154.8,0.63827201]
[1761557162132,2.13925744,1157.4,1154.9,0.56274298]
[1761557162332,2.13925744,1157.6,1155.0,1.20101499]
[1761557162639,2.13925744,1157.6,1155.1,0.56274298]
[1761557162836,2.13925744,1157.4,1154.8,0.63827201]
[1761557163033,2.13925744,1157.4,1154.9,1.20093346]
[1761557163230,2.13925744,1157.4,1155.0,0.56266145]
[1761557163534,2.13925744,1157.5,1155.1,0.56266145]
[1761557163732,2.13925744,1157.5,1155.2,0.56266145]
[1761557163931,2.13925744,1157.5,1154.9,0.63827201]
[1761557164335,2.13925744,1157.5,1154.9,1.20085707]
[1761557164535,2.13925744,1157.5,1155.0,0.56258506]
[1761557164834,2.13925744,1157.5,1155.1,0.56258506]
[1761557165034,2.9949059,1157.9,1155.2,0.56258506]
[1761557165234,2.9949059,1157.9,1155.3,0.56258506]
[1761557165433,2.13925744,1157.8,1155.0,0.63827201]
[1761557165835,2.13925744,1158.0,1155.2,0.63827201]
[1761557166035,2.13925744,1158.0,1155.2,1.20074634]
[1761557166335,2.13925744,1158.0,1155.3,0.56247433]
[1761557166536,2.13925744,1158.0,1155.4,0.56247433]
[1761557166731,2.13925744,1158.0,1155.5,0.56247433]
[1761557167032,2.9949059,1158.4,1155.6,0.56247433]
[1761557167237,2.9949059,1158.4,1155.7,0.56247433]
[1761557167535,0.15044518,1158.5,1155.1,0.63827201]
[1761557167736,0.15044518,1158.5,1155.2,0.56232131]
[1761557167930,0.15044518,1158.5,1155.3,0.56232131]
[1761557168235,0.15044518,1158.5,1155.4,0.56232131]
[1761557168432,0.15044518,1158.5,1155.5,0.56232131]
[1761557168736,0.15044518,1158.5,1155.6,0.56232131]
[1761557168932,0.15044518,1158.5,1155.7,0.56232131]
[1761557169132,0.15044518,1158.5,1155.0,0.63827201]
[1761557169133,0.15044518,1158.5,1155.8,0.56232131]
[1761557169332,0.15044518,1158.5,1155.0,0.63827201]
[1761557169538,0.15044518,1158.5,1155.1,0.5622421]
[1761557169738,0.15044518,1158.5,1155.2,0.5622421]
[1761557169936,0.15044518,1158.5,1155.3,0.5622421]
[1761557170135,0.15044518,1158.5,1155.4,0.5622421]
[1761557170337,0.15044518,1158.5,1155.5,0.5622421]
[1761557170536,0.15044518,1158.5,1155.6,0.5622421]
[1761557170839,0.15044518,1158.5,1155.7,0.5622421]
[1761557171040,0.15044518,1158.5,1155.8,0.5622421]
[1761557171240,0.15044518,1158.5,1155.1,0.63827201]
[1761557171441,2.13925744,1159.5,1155.2,0.56277796]
[1761557171638,0.15039121,1158.8,1155.3,0.56277796]
[1761557171942,2.13925744,1158.1,1155.4,1.20104997]
[1761557172142,2.13925744,1158.1,1155.5,0.56277796]
[1761557172343,2.13925744,1158.1,1155.6,0.56277796]
[1761557172545,2.13925744,1158.3,1155.7,0.56277796]
[1761557172845,2.13925744,1158.3,1155.8,0.56277796]
[1761557173048,3.14529711,1158.8,1155.9,0.56277796]
[1761557173343,3.14529711,1158.8,1156.0,0.56277796]
[1761557173548,3.14529711,1158.8,1156.1,0.56277796]
[1761557173751,6.38384184,1159.1,1155.6,0.63827201]
[1761557174046,0.15036717,1159.0,1155.7,0.56257808]
[1761557174249,0.15036717,1159.0,1155.8,0.56257808]
[1761557174449,0.15036717,1159.0,1155.9,0.56257808]
[1761557174647,0.15036717,1159.0,1156.0,0.56257808]
[1761557174846,2.13925744,1158.6,1156.1,0.56257808]
[1761557175046,2.13925744,1158.6,1156.2,0.56257808]
[1761557175245,2.13925744,1158.6,1155.8,0.63827201]
[1761557175451,2.13925744,1158.7,1155.9,0.56207931]
[1761557175650,2.13925744,1158.7,1156.0,0.56207931]
[1761557175951,2.13925744,1158.7,1156.1,0.56207931]
[1761557176151,2.13925744,1158.7,1155.6,0.85259896]
[1761557176152,2.13925744,1158.7,1155.6,0.63827201]
[1761557176352,5.28453051,1159.0,1155.7,0.56205136]
[1761557176552,5.28453051,1159.0,1155.8,0.56205136]
[1761557176752,5.28453051,1159.0,1155.9,0.56205136]
[1761557177052,2.28962461,1159.0,1155.4,0.63827201]
[1761557177251,2.28962461,1159.0,1155.5,0.56200693]
[1761557177449,2.28962461,1159.0,1155.6,0.56200693]
[1761557177649,2.28962461,1159.0,1155.7,0.56200693]
[1761557177949,2.28962461,1159.0,1155.8,0.56200693]
[1761557178147,2.28962461,1159.0,1155.9,0.56200693]
[1761557178351,2.28962461,1159.0,1155.4,0.63827201]
[1761557178548,0.15036717,1159.0,1155.6,0.63827201]
[1761557178753,2.13925744,1158.7,1155.7,0.56190795]
[1761557179053,2.13925744,1158.7,1155.8,0.56190795]
[1761557179252,2.13925744,1158.6,1155.9,0.56190795]
[1761557179556,2.13925744,1158.6,1156.0,0.56190795]
[1761557179749,2.13925744,1158.6,1155.7,0.63827201]
[1761557179952,2.13925744,1158.6,1155.8,0.56169917]
[1761557180252,2.13925744,1158.6,1155.9,0.56169917]
[1761557180452,2.13925744,1158.8,1156.0,0.56169917]
[1761557180653,2.13925744,1158.8,1156.1,0.56169917]
[1761557180852,3.14527307,1159.0,1156.2,0.56148672]
[1761557181053,0.15036717,1159.0,1155.8,0.63827201]
[1761557181249,0.15036717,1159.0,1155.9,0.56132478]
[1761557181452,0.15036717,1159.0,1156.0,0.56132478]
[1761557181747,0.15036717,1159.0,1156.1,0.56132478]
[1761557181952,0.15036717,1159.0,1156.2,0.56132478]
[1761557182149,0.15036717,1159.0,1155.8,0.63827201]
[1761557182353,0.15036717,1159.0,1155.9,0.56105088]
[1761557182551,0.15036717,1159.0,1156.0,0.56105088]
[1761557182749,0.15036717,1159.0,1156.1,0.56105088]
[1761557182949,0.15036717,1159.0,1156.2,0.56105088]
[1761557183152,0.15036717,1159.0,1155.7,0.63827201]
[1761557183352,0.15036717,1159.0,1155.8,0.56100562]
[1761557183553,0.15036717,1159.0,1155.9,0.56100562]
[1761557183852,0.15036717,1159.0,1156.0,0.56100562]
[1761557184049,0.15036717,1159.0,1156.1,0.56100562]
[1761557184350,0.15036717,1159.0,1156.2,0.56100562]
[1761557184553,0.15036717,1159.0,1156.3,0.56100562]
[1761557184754,0.15036717,1159.0,1155.6,0.63827201]
[1761557185053,0.15036717,1159.0,1155.7,0.56107085]
[1761557185251,0.15036717,1159.0,1155.8,0.56107085]
[1761557185454,0.15036717,1159.0,1155.9,0.56107085]
[1761557185649,0.15036717,1159.0,1156.0,0.56107085]
[1761557185953,0.15036717,1159.0,1156.1,0.56107085]
[1761557186153,0.15036717,1159.0,1155.6,0.63827201]
[1761557186351,0.15036717,1159.0,1155.7,0.56115496]
[1761557186554,0.15036717,1159.0,1155.8,0.56115496]
[1761557186748,0.15036717,1159.0,1155.9,0.56115496]
[1761557186954,0.15036717,1159.0,1156.0,0.56115496]
[1761557187148,0.15036717,1159.0,1156.1,0.56115496]
[1761557187350,0.15036717,1159.0,1155.7,0.63827201]
[1761557187555,0.15036717,1159.0,1155.8,0.56130302]
[1761557187854,2.13925744,1158.8,1155.9,0.56130302]
[1761557188050,2.13925744,1158.8,1156.0,0.56130302]
[1761557188251,2.13925744,1158.8,1156.1,0.56130302]
[1761557188450,2.13925744,1158.8,1156.2,0.56130302]
[1761557188755,2.13925744,1158.8,1155.8,0.63827201]
[1761557188954,2.13925744,1158.8,1155.9,1.19945382]
[1761557189152,2.13925744,1158.9,1156.0,0.56118181]
[1761557189355,2.13925744,1158.9,1156.1,0.56118181]
[1761557189654,2.13925744,1158.8,1156.2,0.56118181]
[1761557189857,2.13925744,1158.8,1155.9,0.63827201]
[1761557190051,2.13925744,1158.8,1156.0,0.56117052]
[1761557190252,2.13925744,1158.9,1156.1,0.56117052]
[1761557190455,2.13925744,1158.9,1156.2,0.56117052]
[1761557190655,2.13925744,1158.8,1155.9,0.63827201]
[1761557190855,2.13925744,1158.8,1156.0,0.56118763]
[1761557191156,2.13925744,1158.8,1156.1,0.56118763]
[1761557191350,2.13925744,1158.8,1156.2,0.56118763]
[1761557191554,2.13925744,1158.8,1155.8,0.63827201]
[1761557191753,0.15036717,1159.0,1155.9,0.56121727]
[1761557191951,0.15036717,1159.0,1155.7,0.63827201]
[1761557191952,0.15036717,1159.0,1156.0,0.56121727]
[1761557192151,0.15036717,1159.0,1156.1,0.56121727]
[1761557192357,0.15036717,1159.0,1155.7,0.63827201]
[1761557192556,0.15036717,1159.0,1155.8,0.56129616]
[1761557192857,0.15036717,1159.0,1155.9,0.56129616]
[1761557193056,0.15036717,1159.0,1156.0,0.56129616]
[1761557193257,0.15036717,1159.0,1156.1,0.56129616]
[1761557193556,0.15036717,1159.0,1156.2,0.56129616]
[1761557193753,0.15036717,1159.0,1155.5,0.63827201]
[1761557193957,0.15036717,1159.0,1155.6,0.56130462]
[1761557194154,0.15036717,1159.0,1155.7,0.56130462]
[1761557194454,0.15036717,1159.0,1155.8,0.56130462]
[1761557194658,0.15036717,1159.0,1155.9,0.56130462]
[1761557194857,0.15036717,1159.0,1156.0,0.56130462]
[1761557195057,0.15036717,1159.0,1156.1,0.56130462]
[1761557195254,0.15036717,1159.0,1156.2,0.56130462]
[1761557195457,0.15036717,1159.0,1155.5,0.63827201]
[1761557195659,0.15036717,1159.0,1155.6,0.56134655]
[1761557195857,0.15036717,1159.0,1155.7,0.56134655]
[1761557196158,0.15036717,1159.0,1155.8,0.56134655]
[1761557196356,0.15036717,1159.0,1155.9,0.56134655]
[1761557196556,0.15036717,1159.0,1156.0,0.56134655]
[1761557196756,0.15036717,1159.0,1156.1,0.56134655]
[1761557196960,0.15036717,1159.0,1156.2,0.56134655]
[1761557197157,0.15036717,1159.0,1155.5,0.63827201]
[1761557197360,0.15036717,1159.0,1155.6,0.56132786]
[1761557197558,0.15036717,1159.0,1155.7,0.56132786]
[1761557197761,0.15036717,1159.0,1155.8,0.56132786]
[1761557198058,0.15036717,1159.0,1155.9,0.56132786]
[1761557198362,0.15036717,1159.0,1156.0,0.56132786]
[1761557198661,0.15036717,1159.0,1156.1,0.56132786]
[1761557198864,0.15036717,1159.0,1156.2,0.56132786]
[1761557199062,0.15036717,1159.0,1156.3,0.56132786]
[1761557199261,0.15036717,1159.0,1155.7,0.63827201]
[1761557199461,0.15036717,1159.0,1155.4,0.85259896]
[1761557199462,0.15036717,1159.0,1155.8,1.19936528]
[1761557199757,0.15036717,1159.0,1155.9,0.56109327]
[1761557199961,0.15036717,1159.0,1156.0,0.56109327]
[1761557200161,0.15036717,1159.0,1155.7,0.63827201]
[1761557200162,0.15036717,1159.0,1156.1,0.56109327]
[1761557200360,0.15036717,1159.0,1156.2,0.56109327]
[1761557200661,0.15036717,1159.0,1156.3,0.56109327]
[1761557200858,0.15036717,1159.0,1155.7,0.63827201]
[1761557201058,0.15036717,1159.0,1155.8,0.56203996]
[1761557201262,0.15036717,1159.0,1155.9,0.56203996]
[1761557201562,0.15036717,1159.0,1156.0,0.56203996]
[1761557201759,0.15036717,1159.0,1156.1,0.56203996]
[1761557202059,0.15036717,1159.0,1156.2,0.56203996]
[1761557202259,0.15036717,1159.0,1156.3,0.56203996]
[1761557202459,0.15036717,1159.0,1156.4,0.56191257]
[1761557202660,0.15036717,1159.0,1155.8,0.63827201]
[1761557202859,0.15036717,1159.0,1155.9,0.56191601]
[1761557203163,0.15036717,1159.0,1156.0,0.56191601]
[1761557203364,0.15036717,1159.0,1156.1,0.56191601]
[1761557203664,0.15036717,1159.0,1156.2,0.56191601]
[1761557203864,0.15036717,1159.0,1155.8,0.63827201]
[1761557204061,0.15036717,1159.0,1155.9,0.56148344]
[1761557204266,2.13925744,1158.9,1156.0,0.56148344]
[1761557204561,2.13925744,1158.9,1156.1,0.56148344]
[1761557204763,2.13925744,1158.9,1156.2,0.56148344]
[1761557204962,2.13925744,1158.9,1155.8,0.63827201]
[1761557205160,2.13925744,1158.9,1155.9,0.5614738]
[1761557205466,0.15036717,1159.0,1156.0,0.5614738]
[1761557205661,0.15036717,1159.0,1156.1,0.5614738]
[1761557205861,0.15036717,1159.0,1155.6,0.63827201]
[1761557206061,0.15036717,1159.0,1155.7,0.56155872]
[1761557206266,0.15036717,1159.0,1155.8,0.56155872]
[1761557206463,0.15036717,1159.0,1155.9,0.56155872]
[1761557206766,0.15036717,1159.0,1156.0,0.56155872]
[1761557206962,0.15036717,1159.0,1156.1,0.56155872]
[1761557207264,0.15036717,1159.0,1155.5,0.63827201]
[1761557207462,0.15036717,1159.0,1155.7,0.63827201]
[1761557207762,0.15036717,1159.0,1155.8,0.56161925]
[1761557208062,0.15036717,1159.0,1155.9,0.56161925]
[1761557208263,0.15036717,1159.0,1156.0,0.56161925]
[1761557208467,0.15036717,1159.0,1156.1,0.56161925]
[1761557208665,0.15036717,1159.0,1156.2,0.56161925]
[1761557208867,0.15036717,1159.0,1155.7,0.63827201]
[1761557209068,0.15036717,1159.0,1155.8,0.56161317]
[1761557209268,0.15036717,1159.0,1155.9,0.56161317]
[1761557209563,0.15036717,1159.0,1156.0,0.56161317]
[1761557209763,0.15036717,1159.0,1156.1,0.56161317]
[1761557209968,0.15036717,1159.0,1156.2,0.56161317]
[1761557210168,0.15036717,1159.0,1155.7,0.63827201]
[1761557210369,0.15036717,1159.0,1155.8,0.56165931]
[1761557210569,0.15036717,1159.0,1155.9,0.56165931]
[1761557210766,0.15036717,1159.0,1156.0,0.56165931]
[1761557210967,0.15036717,1159.0,1156.1,0.56165931]
[1761557211167,0.15036717,1159.0,1156.2,0.56165931]
[1761557211364,0.15036717,1159.0,1156.3,0.56165931]
[1761557211567,0.15036717,1159.0,1155.9,0.63827201]
[1761557211769,0.15036717,1159.0,1156.0,0.56168989]
[1761557211967,2.28962461,1159.0,1156.1,0.56168989]
[1761557212270,2.28962461,1159.0,1156.2,0.56168989]
[1761557212468,2.28962461,1159.0,1155.8,0.63827201]
[1761557212968,2.13925744,1158.9,1155.8,0.56176467]
[1761557213168,2.13925744,1158.9,1155.9,0.56176467]
[1761557213368,2.28962461,1159.0,1156.0,0.56176467]
[1761557213567,2.28962461,1159.0,1156.1,0.56176467]
[1761557213766,2.28962461,1159.0,1155.7,0.63827201]
[1761557213972,2.28962461,1159.0,1155.8,0.56194912]
[1761557214168,2.28962461,1159.0,1155.7,0.63827201]
[1761557214169,2.28962461,1159.0,1155.9,0.56194912]
[1761557214368,2.28962461,1159.0,1156.0,0.56194912]
[1761557214571,2.28962461,1159.0,1156.1,0.56194912]
[1761557214771,2.28962461,1159.0,1155.7,0.63827201]
[1761557215071,2.13925744,1158.7,1155.8,1.20042334]
[1761557215270,2.13925744,1158.7,1155.9,0.56215133]
[1761557215466,2.13925744,1158.7,1156.0,0.56215133]
[1761557215674,2.13925744,1158.7,1156.1,0.56215133]
[1761557215871,2.13925744,1158.7,1155.8,0.63827201]
[1761557216067,2.13925744,1158.6,1155.9,0.56238653]
[1761557216267,2.13925744,1158.6,1156.0,0.56238653]
[1761557216472,2.13925744,1158.6,1155.6,0.63827201]
[1761557216473,0.15036717,1159.0,1155.6,0.63827201]
[1761557216671,0.15036717,1159.0,1155.7,0.56272494]
[1761557216871,0.15036717,1159.0,1155.8,0.56272494]
[1761557217170,2.13925744,1158.4,1155.9,0.56272494]
[1761557217373,2.13925744,1158.4,1155.6,0.63827201]
[1761557217675,2.13925744,1158.3,1155.6,0.63827201]
[1761557217874,2.13925744,1158.3,1155.7,0.56266158]
[1761557218171,2.13925744,1158.2,1155.8,0.56266158]
[1761557218374,2.13925744,1158.2,1155.5,0.63827201]
[1761557218771,2.13925744,1158.2,1155.6,0.5630592]
[1761557218974,2.13925744,1158.2,1155.7,0.5630592]
[1761557219174,2.13925744,1158.0,1155.3,0.63827201]
[1761557219372,2.13925744,1158.0,1155.4,0.56314614]
[1761557219570,2.13925744,1157.9,1155.5,0.56314614]
[1761557219772,2.13925744,1157.9,1155.2,0.63827201]
[1761557219971,2.13925744,1157.9,1155.3,0.56357865]
[1761557220175,2.13925744,1157.8,1155.4,0.56357865]
[1761557220371,2.13925744,1157.8,1155.5,0.56357865]
[1761557220577,2.13925744,1157.8,1155.1,0.63827201]
[1761557220878,2.13925744,1157.8,1155.2,0.56357876]
[1761557221079,2.13925744,1157.8,1155.3,0.56357876]
[1761557221277,2.13925744,1157.5,1155.0,0.63827201]
[1761557221579,2.13925744,1157.5,1154.7,0.15039446]
[1761557221580,2.13925744,1157.5,1155.1,0.56400384]
[1761557221777,2.13925744,1157.2,1154.7,0.15039446]
[1761557222077,2.13925744,1157.2,1154.8,0.56418523]
[1761557222277,2.13925744,1157.1,1154.7,0.15039446]
[1761557222573,2.13925744,1157.1,1154.8,1.20231101]
[1761557222776,2.13925744,1157.4,1154.9,0.564039]
[1761557222978,2.13925744,1157.4,1155.0,0.564039]
[1761557223175,2.13925744,1157.4,1155.1,0.564039]
[1761557223377,2.13925744,1157.4,1154.8,0.63827201]
[1761557223575,2.13925744,1157.4,1154.9,0.56325035]
[1761557223778,2.13925744,1157.4,1155.0,0.56325035]
[1761557224079,5.13416334,1157.9,1155.1,0.56325035]
[1761557224280,5.13416334,1157.9,1154.7,0.15039446]
[1761557224480,2.9949059,1157.9,1154.8,0.56286609]
[1761557224781,2.9949059,1157.9,1154.7,0.15039446]
[1761557224782,2.9949059,1157.7,1154.9,0.56286609]
[1761557224976,2.13925744,1157.4,1154.7,0.15039446]
[1761557225174,2.13925744,1157.4,1154.8,0.56291461]
[1761557225375,2.13925744,1157.4,1154.9,0.56291461]
[1761557225679,2.13925744,1157.4,1154.7,0.15039446]
[1761557225979,2.13925744,1157.4,1154.8,0.56241288]
[1761557226176,2.13925744,1157.4,1154.5,0.63827201]
[1761557226479,5.13416334,1157.8,1154.6,0.56054926]
[1761557226680,5.13416334,1157.8,1154.4,0.15058709]
[1761557226879,2.13925744,1157.8,1154.5,0.56061158]
[1761557227176,2.13925744,1157.9,1154.6,0.56061158]
[1761557227380,2.13925744,1157.9,1154.7,0.56061158]
[1761557227680,2.13925744,1158.0,1154.4,0.15058709]
[1761557227874,2.13925744,1158.0,1154.5,0.55994428]
[1761557228080,2.13925744,1157.9,1154.6,0.55994428]
[1761557228275,2.13925744,1157.9,1154.7,0.559406]
[1761557228478,2.13925744,1157.6,1154.4,0.7888591]
[1761557228674,2.13925744,1157.6,1154.5,0.55941314]
[1761557228978,2.13925744,1157.4,1154.6,0.55941314]
[1761557229177,2.13925744,1157.4,1153.7,0.63827201]
[1761557229375,2.13925744,1157.4,1154.0,0.15060371]
[1761557229678,2.13925744,1157.2,1154.1,0.55882242]
[1761557230679,2.13925744,1157.3,1154.1,0.55882242]
[1761557231177,2.13925744,1157.4,1154.1,0.55882242]
[1761557231376,2.9949059,1157.7,1154.2,0.55882242]
[1761557231574,2.13925744,1158.7,1154.3,0.55882242]
[1761557231779,2.13925744,1158.7,1154.4,0.55882242]
[1761557231979,2.13925744,1158.0,1154.1,0.63827201]
[1761557232175,2.13925744,1158.0,1154.2,0.55596765]
[1761557232378,0.15036717,1159.0,1154.3,0.55596765]
[1761557232379,2.13925744,1158.1,1154.3,0.55596765]
[1761557232576,2.13925744,1158.1,1154.4,0.55596765]
[1761557232778,2.13925744,1158.1,1154.5,0.55596765]
[1761557232976,2.13925744,1158.1,1154.1,0.63827201]
[1761557233278,2.13925744,1158.2,1154.2,0.55548294]
[1761557233478,2.13925744,1158.2,1154.3,0.55548294]
[1761557233680,2.13925744,1158.2,1154.4,0.55548294]
[1761557233882,2.13925744,1158.2,1154.5,0.55548294]
[1761557234183,2.13925744,1158.1,1154.1,0.63827201]
[1761557234383,2.13925744,1158.1,1154.2,1.19311952]
[1761557234677,2.13925744,1158.4,1154.3,0.55484751]
[1761557234879,2.13925744,1158.4,1154.4,0.55484751]
[1761557235083,2.13925744,1158.4,1154.5,0.55484751]
[1761557235283,2.13925744,1158.5,1154.6,0.55484751]
[1761557235482,2.13925744,1158.5,1154.2,0.63827201]
[1761557235679,2.13925744,1158.5,1154.3,0.55463394]
[1761557235878,2.13925744,1158.5,1154.4,0.55463394]
[1761557236079,2.13925744,1158.5,1154.5,0.55463394]
[1761557236380,2.13925744,1158.5,1154.6,0.55463394]
[1761557236580,2.13925744,1158.5,1154.2,0.63827201]
[1761557236784,2.13925744,1158.5,1154.3,0.55442781]
[1761557237084,2.13925744,1158.5,1154.4,0.55442781]
[1761557237285,2.13925744,1158.5,1154.5,0.55442781]
[1761557237584,2.13925744,1158.5,1154.6,0.55442781]
[1761557237881,2.13925744,1158.6,1154.2,0.63827201]
[1761557238179,2.13925744,1158.6,1154.3,1.19248725]
[1761557238385,2.13925744,1158.4,1154.4,0.55421524]
[1761557238681,2.13925744,1158.4,1154.5,0.55421524]
[1761557238885,2.13925744,1158.8,1154.6,0.55421524]
[1761557239087,2.13925744,1158.8,1154.7,0.55421524]
[1761557239286,2.13925744,1158.9,1154.8,0.55421524]
[1761557239484,2.13925744,1158.9,1154.4,0.63827201]
[1761557239686,2.13925744,1158.9,1154.5,0.55304249]
[1761557239982,2.13925744,1158.5,1154.6,0.55304249]
[1761557240186,2.13925744,1158.5,1154.7,0.55300834]
[1761557240385,2.13925744,1158.4,1154.3,0.63827201]
[1761557240584,2.13925744,1158.4,1154.4,0.55295972]
[1761557240882,2.13925744,1158.4,1154.5,0.55295972]
[1761557241086,2.13925744,1158.4,1154.6,0.55295972]
[1761557241386,2.13925744,1158.4,1154.3,0.63827201]
[1761557241586,2.13925744,1158.4,1154.4,0.55288286]
[1761557241785,2.13925744,1158.4,1154.5,0.55288286]
[1761557241986,2.13925744,1158.4,1154.6,0.55288286]
[1761557242184,2.13925744,1158.4,1154.7,0.55288286]
[1761557242386,2.13925744,1158.5,1154.3,0.63827201]
[1761557242583,2.13925744,1158.5,1154.4,0.55281435]
[1761557242783,2.13925744,1158.5,1154.0,0.15060371]
[1761557242983,2.13925744,1158.9,1154.1,0.55287271]
[1761557243185,2.13925744,1158.9,1154.0,0.15060371]
[1761557243186,2.13925744,1158.9,1154.2,0.55287271]
[1761557243385,2.28962461,1159.0,1154.3,0.55287271]
[1761557243584,2.28962461,1159.0,1154.0,0.15060371]
[1761557243786,2.28962461,1159.0,1154.1,0.55276788]
[1761557243984,2.13925744,1158.3,1154.0,0.15060371]
[1761557244184,2.13925744,1158.3,1154.1,0.55279605]
[1761557244388,2.13925744,1158.2,1154.0,0.15060371]
[1761557244584,2.13925744,1158.2,1154.1,0.55268732]
[1761557244783,2.13925744,1158.2,1154.0,0.15060371]
[1761557245087,2.13925744,1158.2,1154.1,0.55269053]
[1761557245285,2.13925744,1158.2,1154.0,0.15060371]
[1761557245586,2.13925744,1158.2,1154.1,0.55258542]
[1761557245787,2.13925744,1158.2,1154.0,0.15060371]
[1761557245991,2.13925744,1158.1,1154.1,0.55258576]
[1761557246186,2.13925744,1158.1,1154.0,0.15060371]
[1761557246489,2.13925744,1158.1,1154.1,0.55247184]
[1761557246688,2.13925744,1158.0,1154.0,0.15060371]
[1761557246989,2.13925744,1158.0,1154.1,0.55247115]
[1761557247189,2.13925744,1158.0,1154.0,0.15060371]
[1761557247484,2.13925744,1158.0,1154.1,0.5523786]
[1761557247689,2.13925744,1158.0,1154.0,0.15060371]
[1761557247890,2.13925744,1158.0,1154.1,0.55236769]
[1761557248085,2.13925744,1158.0,1154.2,0.55235981]
[1761557248289,2.13925744,1158.0,1154.0,0.15060371]
[1761557248486,2.13925744,1158.0,1154.1,0.55233588]
[1761557248785,2.9949059,1158.3,1154.2,0.55233588]
[1761557249090,2.13925744,1158.8,1154.0,0.15060371]
[1761557249385,2.13925744,1158.8,1154.1,0.55233709]
[1761557249591,2.13925744,1158.8,1154.2,0.55233709]
[1761557249787,2.13925744,1158.8,1154.0,0.15060371]
[1761557249985,2.13925744,1158.8,1154.1,0.55188052]
[1761557250284,2.13925744,1158.8,1154.0,0.15060371]
[1761557250489,2.13925744,1158.8,1154.1,0.55186542]
[1761557250686,2.13925744,1158.8,1154.0,0.15060371]
[1761557250889,2.13925744,1158.8,1154.1,0.55186542]
[1761557251086,2.13925744,1158.8,1154.2,0.55186542]
[1761557251290,2.13925744,1158.9,1154.0,0.15060371]
[1761557251592,2.13925744,1158.9,1154.1,0.55186061]
[1761557251887,2.13925744,1158.9,1154.2,0.55186061]
[1761557252091,2.13925744,1158.9,1154.0,0.15060371]
[1761557252291,2.13925744,1158.9,1154.1,0.55186186]
[1761557252490,2.13925744,1158.9,1154.2,0.55186186]
[1761557252690,2.13925744,1158.9,1154.3,0.55186186]
[1761557252886,2.13925744,1158.8,1154.4,0.55186186]
[1761557253088,2.13925744,1158.8,1154.0,0.15060371]
[1761557253288,2.13925744,1158.8,1154.1,0.55182575]
[1761557253488,2.13925744,1158.8,1154.2,0.55182575]
[1761557253686,2.13925744,1158.8,1154.3,0.55182575]
[1761557253888,2.13925744,1158.8,1154.4,0.55182575]
[1761557254087,2.13925744,1158.8,1154.0,0.15060371]
[1761557254291,2.13925744,1158.8,1154.1,0.55186266]
[1761557254491,2.13925744,1158.8,1154.2,0.55186266]
[1761557254692,2.13925744,1158.8,1154.3,0.55186266]
[1761557254893,2.13925744,1158.8,1154.0,0.15060371]
[1761557255091,2.13925744,1158.8,1154.1,0.55189938]
[1761557255289,2.13925744,1158.8,1154.2,0.55189938]
[1761557255488,2.13925744,1158.8,1154.3,0.55189938]
[1761557255794,2.13925744,1158.8,1154.0,0.15060371]
[1761557255993,2.13925744,1158.8,1154.1,0.55195899]
[1761557256293,2.13925744,1158.8,1154.2,0.55195899]